bitfinex-derivatives/quotes_BTCF0:USTF0_20251110
["timestamp","ask_amount","ask_price","bid_price","bid_amount"]
[1762797295095,0.23505611,105830.0,105820.0,0.31176165]
[1762797296612,0.14053311,105830.0,105820.0,0.31176165]
[1762797297508,0.04667803,105830.0,105820.0,0.31176165]
[1762797297713,0.14053311,105830.0,105820.0,0.31176165]
[1762797297914,0.15354311,105830.0,105820.0,0.16616165]
[1762797298114,0.24806591,105830.0,105820.0,0.07162995]
[1762797298314,0.24806591,105830.0,105820.0,0.16616165]
[1762797298906,0.24806591,105830.0,105820.0,0.23341654]
[1762797300212,0.24806591,105830.0,105820.0,0.12626484]
[1762797300518,0.24806591,105830.0,105820.0,0.01490995]
[1762797300708,0.24806591,105830.0,105820.0,0.03770995]
[1762797301018,0.24806591,105830.0,105820.0,0.06075995]
[1762797301724,0.24806591,105830.0,105820.0,0.01490995]
[1762797302014,0.24806591,105830.0,105790.0,0.12623489]
[1762797302015,0.1385196,105800.0,105790.0,0.12623489]
[1762797302314,0.24303271,105800.0,105790.0,0.2319934]
[1762797302515,0.14002311,105800.0,105790.0,0.2319934]
[1762797302716,0.00219803,105800.0,105790.0,0.23832033]
[1762797302918,8.713e-05,105800.0,105790.0,0.47464033]
[1762797303218,8.713e-05,105800.0,105790.0,0.55881554]
[1762797303419,8.713e-05,105800.0,105790.0,0.32449554]
[1762797303918,8.713e-05,105800.0,105790.0,0.32649554]
[1762797304619,0.04625516,105800.0,105790.0,0.32649554]
[1762797305016,0.14011024,105800.0,105790.0,0.32649554]
[1762797305908,0.02347516,105800.0,105790.0,0.32649554]
[1762797306318,0.23465984,105800.0,105790.0,0.32649554]
[1762797306514,0.14011024,105800.0,105790.0,0.32649554]
[1762797306816,0.23465984,105800.0,105790.0,0.32649554]
[1762797307420,0.23465984,105800.0,105790.0,0.2359521]
[1762797308620,0.24834984,105800.0,105790.0,0.2359521]
[1762797309417,0.24834984,105800.0,105790.0,0.1275436]
[1762797309715,0.24834984,105800.0,105790.0,0.06010561]
[1762797310914,0.24834984,105800.0,105790.0,0.16851411]
[1762797311117,0.24834984,105800.0,105790.0,0.15466411]
[1762797313017,0.24834984,105800.0,105790.0,0.15466421]
[1762797314521,0.24834984,105800.0,105790.0,0.03705561]
[1762797315018,0.24834984,105800.0,105790.0,0.06010561]
[1762797315411,0.24834984,105800.0,105790.0,0.15466421]
[1762797317824,0.24834984,105800.0,105790.0,0.06010561]
[1762797318126,0.24834984,105800.0,105790.0,0.03705561]
[1762797318424,0.24834984,105800.0,105790.0,0.13161421]
[1762797318727,0.24834984,105800.0,105790.0,0.15466421]
[1762797320427,0.23465984,105800.0,105790.0,0.16817421]
[1762797325736,0.23551984,105800.0,105790.0,0.16817421]
[1762797326535,0.14097024,105800.0,105790.0,0.16817421]
[1762797326930,0.23551984,105800.0,105790.0,0.2356122]
[1762797328027,0.09700024,105800.0,105790.0,0.2356122]
[1762797328233,0.23768984,105800.0,105790.0,0.2356122]
[1762797330651,0.14314024,105800.0,105790.0,0.2356122]
[1762797332338,0.23768984,105800.0,105790.0,0.2356122]
[1762797333040,0.14314024,105800.0,105790.0,0.2356122]
[1762797333243,0.14314024,105800.0,105790.0,0.16817421]
[1762797333444,0.00094713,105800.0,105790.0,0.3462045]
[1762797333640,0.00080537,105800.0,105790.0,0.5825245]
[1762797334041,0.00080537,105800.0,105790.0,0.49834929]
[1762797334238,0.00080537,105800.0,105790.0,0.34640407]
[1762797334447,0.00014177,105810.0,105800.0,0.1524096]
[1762797334648,0.00014177,105810.0,105800.0,0.15314227]
[1762797334959,1.77e-06,105810.0,105800.0,0.56763539]
[1762797335257,1.77e-06,105810.0,105800.0,0.33135539]
[1762797335448,1.77e-06,105810.0,105800.0,0.56763539]
[1762797335852,1.77e-06,105810.0,105800.0,0.33135539]
[1762797336152,1.77e-06,105810.0,105800.0,0.56763539]
[1762797336346,1.77e-06,105810.0,105800.0,0.33135539]
[1762797336548,1.77e-06,105810.0,105800.0,1.16963539]
[1762797337846,1.77e-06,105810.0,105800.0,0.93335539]
[1762797338150,1.77e-06,105810.0,105800.0,0.83950031]
[1762797338353,1.77e-06,105810.0,105800.0,0.23950031]
[1762797338847,1.77e-06,105810.0,105800.0,0.33335539]
[1762797341448,1.77e-06,105810.0,105800.0,0.56963539]
[1762797342058,1.77e-06,105810.0,105800.0,0.47895539]
[1762797343554,1.77e-06,105810.0,105800.0,0.38510031]
[1762797343856,1.77e-06,105810.0,105800.0,0.47895539]
[1762797344356,1.77e-06,105810.0,105800.0,0.38510031]
[1762797344949,0.23673528,105810.0,105800.0,0.23950011]
[1762797345150,0.23673528,105810.0,105800.0,0.22249154]
[1762797345456,0.23673528,105810.0,105800.0,0.15514207]
[1762797345859,0.14219488,105810.0,105800.0,0.15514207]
[1762797346253,0.14219488,105810.0,105800.0,0.22249154]
[1762797346453,0.0021998,105810.0,105800.0,0.22249154]
[1762797346653,0.0251798,105810.0,105800.0,0.22249154]
[1762797346856,0.11902191,105810.0,105800.0,0.31633365]
[1762797348262,0.14218191,105810.0,105800.0,0.31633365]
[1762797348558,0.14218191,105810.0,105800.0,0.22249154]
[1762797348762,0.23672231,105810.0,105800.0,0.22249154]
[1762797349758,0.14218191,105810.0,105800.0,0.22249154]
[1762797350263,0.14218191,105810.0,105800.0,0.15514207]
[1762797350462,0.14218191,105810.0,105800.0,0.23950011]
[1762797350663,0.14218191,105810.0,105800.0,0.15514207]
[1762797351160,0.14218191,105810.0,105800.0,0.31632431]
[1762797351362,0.09604191,105810.0,105800.0,0.31632431]
[1762797351763,0.11937191,105810.0,105800.0,0.31632431]
[1762797354162,0.14148191,105810.0,105800.0,0.31632431]
[1762797357972,0.14148191,105810.0,105800.0,0.2224822]
[1762797358167,0.14148191,105810.0,105800.0,0.31632431]
[1762797359160,0.14148191,105810.0,105800.0,0.33334222]
[1762797359768,0.14148191,105810.0,105800.0,0.23950011]
[1762797359970,0.14148191,105810.0,105800.0,0.33334222]
[1762797362762,0.14262191,105810.0,105800.0,0.33334222]
[1762797363460,0.09604191,105810.0,105800.0,0.33334222]
[1762797363971,0.11919191,105810.0,105800.0,0.23950011]
[1762797364168,0.11919191,105810.0,105800.0,0.33334222]
[1762797364469,0.09604191,105810.0,105800.0,0.33334222]
[1762797365066,0.0021998,105810.0,105800.0,0.33334222]
[1762797365463,0.09604191,105810.0,105800.0,0.33334222]
[1762797368069,0.14244191,105810.0,105800.0,0.33334222]
[1762797368264,0.09604191,105810.0,105800.0,0.33334222]
[1762797368471,0.09604191,105810.0,105800.0,0.47894222]
[1762797371475,0.14244191,105810.0,105800.0,0.47894222]
[1762797373469,0.09604191,105810.0,105800.0,0.47894222]
[1762797373665,0.0021998,105810.0,105800.0,0.47894222]
[1762797373866,0.0021998,105810.0,105800.0,0.48842629]
[1762797374070,0.0021998,105810.0,105800.0,0.60639551]
[1762797374773,1.77e-06,105810.0,105800.0,0.60639551]
[1762797374969,1.77e-06,105810.0,105800.0,0.56204551]
[1762797377275,1.77e-06,105810.0,105800.0,0.44407629]
[1762797380279,0.13997191,105810.0,105800.0,0.5135934]
[1762797381368,0.13997191,105810.0,105800.0,0.4799171]
[1762797382772,0.11808191,105810.0,105800.0,0.4799171]
[1762797382976,0.11808191,105810.0,105800.0,0.57375921]
[1762797382977,0.09604191,105810.0,105800.0,0.57375921]
[1762797383477,0.09604191,105810.0,105800.0,0.48946629]
[1762797383982,0.0021998,105810.0,105800.0,0.48946629]
[1762797384182,0.11808191,105810.0,105800.0,0.48946629]
[1762797384380,0.13997191,105810.0,105800.0,0.20723267]
[1762797384578,1.77e-06,105810.0,105800.0,0.52836968]
[1762797384782,1.77e-06,105810.0,105800.0,0.44407629]
[1762797385682,1.77e-06,105810.0,105800.0,0.68035629]
[1762797385880,0.0967402,105810.0,105800.0,0.38537096]
[1762797386181,0.0461298,105810.0,105800.0,0.39562418]
[1762797386370,0.1406702,105810.0,105800.0,0.30107478]
[1762797386575,0.1406702,105810.0,105800.0,0.38537271]
[1762797386770,0.23451231,105810.0,105800.0,0.38537271]
[1762797387770,0.0021998,105810.0,105800.0,0.47992211]
[1762797387975,0.0021998,105810.0,105800.0,0.57376422]
[1762797388376,0.0021998,105810.0,105800.0,0.39562418]
[1762797388576,0.0967402,105810.0,105800.0,0.47992238]
[1762797388776,0.21262231,105810.0,105800.0,0.47992238]
[1762797389480,0.23451231,105810.0,105800.0,0.38537298]
[1762797389779,0.23451231,105810.0,105800.0,0.47992228]
[1762797390085,0.23451231,105810.0,105800.0,0.38537298]
[1762797390790,0.23451231,105810.0,105800.0,0.47992238]
[1762797391684,0.23451231,105810.0,105800.0,0.38537298]
[1762797392886,0.23451231,105810.0,105800.0,0.47992228]
[1762797393882,0.23451231,105810.0,105800.0,0.39562408]
[1762797394085,0.23451231,105810.0,105800.0,0.47991848]
[1762797394783,0.23451231,105810.0,105800.0,0.38607637]
[1762797394980,0.23451231,105810.0,105800.0,0.47991848]
[1762797398290,0.23451231,105810.0,105800.0,0.38536918]
[1762797398492,0.33503442,105810.0,105800.0,0.13241707]
[1762797398696,0.0021998,105810.0,105800.0,0.24021918]
[1762797398996,0.0021998,105810.0,105800.0,0.33476858]
[1762797399293,0.0021998,105810.0,105800.0,0.3873362]
[1762797400286,0.0021998,105810.0,105800.0,0.42101102]
[1762797403304,1.77e-06,105810.0,105800.0,0.61506313]
[1762797403503,1.77e-06,105810.0,105800.0,0.81760785]
[1762797403800,1.77e-06,105810.0,105800.0,0.73337391]
[1762797404006,0.09384211,105820.0,105810.0,0.1538904]
[1762797404201,0.23229511,105830.0,105820.0,0.1538815]
[1762797404505,0.23449314,105830.0,105820.0,0.23881579]
[1762797405007,0.23449314,105830.0,105820.0,0.14428429]
[1762797405305,0.23449314,105830.0,105820.0,0.23881579]
[1762797405707,0.23549314,105830.0,105820.0,0.14428429]
[1762797405898,0.23549314,105830.0,105820.0,0.23881579]
[1762797406398,0.23449314,105830.0,105820.0,0.23881579]
[1762797407006,0.23649314,105830.0,105820.0,0.23881579]
[1762797407398,0.23649314,105830.0,105820.0,0.14428429]
[1762797407603,0.23649314,105830.0,105820.0,0.23881579]
[1762797407804,0.23449314,105830.0,105820.0,0.23881579]
[1762797408810,0.13997014,105830.0,105820.0,0.3326579]
[1762797409002,0.23446025,105830.0,105820.0,0.23881579]
[1762797410002,0.13993765,105830.0,105820.0,0.23881579]
[1762797410207,0.23446015,105830.0,105820.0,0.23881579]
[1762797410507,0.23446015,105830.0,105820.0,0.15461417]
[1762797413706,0.23446015,105830.0,105820.0,0.06008267]
[1762797414105,0.23446015,105830.0,105820.0,0.12736418]
[1762797415107,0.24353015,105830.0,105820.0,0.02317267]
[1762797415411,0.24353015,105830.0,105820.0,0.11263418]
[1762797415612,0.24353015,105830.0,105820.0,0.04535267]
[1762797415912,0.24353015,105830.0,105820.0,0.11263418]
[1762797416909,0.24553015,105830.0,105820.0,0.11263418]
[1762797417305,0.24653015,105830.0,105820.0,0.11263418]
[1762797419208,0.24653015,105830.0,105820.0,0.06801418]
[1762797419404,0.24653015,105830.0,105820.0,0.08906418]
[1762797419715,0.24653015,105830.0,105820.0,0.11124418]
[1762797420215,0.24653015,105830.0,105820.0,0.20577568]
[1762797423012,0.24653015,105830.0,105820.0,0.11124418]
[1762797423217,0.24653015,105830.0,105820.0,0.06801418]
[1762797423421,0.24653015,105830.0,105820.0,0.00073267]
[1762797423619,0.24653015,105830.0,105820.0,0.04396267]
[1762797424422,0.24653015,105830.0,105820.0,0.00073267]
[1762797425118,0.1501715,105820.0,105810.0,0.11065328]
[1762797425415,0.24617915,105820.0,105810.0,0.11138595]
[1762797425917,0.24617915,105820.0,105810.0,0.20592635]
[1762797427421,0.24617915,105820.0,105810.0,0.11138595]
[1762797427815,0.04470803,105820.0,105810.0,0.21863635]
[1762797428015,0.13851765,105820.0,105810.0,0.21863635]
[1762797428321,0.23304915,105820.0,105810.0,0.12409595]
[1762797428820,0.23504915,105820.0,105810.0,0.20105667]
[1762797429411,0.23604915,105820.0,105810.0,0.20105667]
[1762797429611,0.23604915,105820.0,105810.0,0.29559707]
[1762797430015,0.23504915,105820.0,105810.0,0.20105667]
[1762797430519,0.14051765,105820.0,105810.0,0.20105667]
[1762797430714,0.00419803,105820.0,105810.0,0.22831556]
[1762797431312,0.23304915,105820.0,105810.0,0.13377516]
[1762797431520,0.23304915,105820.0,105810.0,0.20106915]
[1762797433118,0.13851765,105820.0,105810.0,0.29560955]
[1762797433307,0.04470803,105820.0,105810.0,0.22831556]
[1762797434217,0.23304915,105820.0,105810.0,0.13377516]
[1762797434722,0.23304915,105820.0,105810.0,0.22831556]
[1762797434928,0.23304915,105820.0,105810.0,0.13377516]
[1762797435313,0.23304915,105820.0,105810.0,0.22831556]
[1762797440615,0.13851765,105820.0,105810.0,0.22831556]
[1762797440816,0.23304915,105820.0,105810.0,0.22831556]
[1762797441420,0.23304915,105820.0,105810.0,0.29566155]
[1762797442027,0.13923953,105820.0,105810.0,0.29566155]
[1762797442230,0.23304915,105820.0,105810.0,0.29566155]
[1762797442525,0.13851765,105820.0,105810.0,0.29566155]
[1762797442827,0.23304915,105820.0,105810.0,0.29566155]
[1762797444130,0.23304915,105820.0,105810.0,0.22831556]
[1762797444625,0.13851765,105820.0,105810.0,0.22831556]
[1762797445720,0.23304915,105820.0,105810.0,0.22831556]
[1762797446028,0.23304915,105820.0,105810.0,0.29568066]
[1762797446327,0.23304915,105820.0,105810.0,0.22831556]
[1762797446629,0.23304915,105820.0,105810.0,0.13377516]
[1762797446927,0.04470803,105820.0,105810.0,0.22831556]
[1762797447123,0.04400177,105840.0,105830.0,0.1521625]
[1762797447322,0.0461998,105840.0,105830.0,0.15289517]
[1762797447627,0.23452302,105840.0,105830.0,0.12571138]
[1762797448018,0.23452302,105840.0,105830.0,0.22023388]
[1762797448420,0.23752302,105840.0,105830.0,0.22023388]
[1762797448623,0.23952302,105840.0,105830.0,0.22023388]
[1762797448823,0.1457134,105840.0,105830.0,0.22023388]
[1762797449031,0.23952302,105840.0,105830.0,0.22023388]
[1762797453032,0.14500942,105840.0,105830.0,0.22023388]
[1762797453626,0.23952302,105840.0,105830.0,0.22023388]
[1762797453937,0.14500942,105840.0,105830.0,0.22023388]
[1762797454328,0.23952302,105840.0,105830.0,0.22023388]
[1762797458740,0.14500942,105840.0,105830.0,0.22023388]
[1762797460439,0.0285598,105840.0,105830.0,0.24670479]
[1762797460640,0.0285598,105840.0,105830.0,0.3140435]
[1762797460934,0.0285598,105840.0,105830.0,0.23709679]
[1762797461340,0.0511998,105840.0,105830.0,0.23709679]
[1762797461732,0.0073398,105840.0,105830.0,0.15289517]
[1762797461937,0.0285598,105840.0,105830.0,0.15289517]
[1762797462138,0.0511998,105840.0,105830.0,0.23709679]
[1762797462440,0.0285598,105840.0,105830.0,0.23709679]
[1762797462641,0.0073398,105840.0,105830.0,0.23709679]
[1762797463537,0.14500942,105840.0,105830.0,0.23709679]
[1762797463742,0.0285598,105840.0,105830.0,0.23709679]
[1762797464134,0.0073398,105840.0,105830.0,0.23709679]
[1762797464440,0.0285598,105840.0,105830.0,0.23709679]
[1762797465439,0.00514177,105840.0,105830.0,0.33090641]
[1762797468336,0.14351537,105840.0,105830.0,0.23709679]
[1762797468542,0.0511998,105840.0,105830.0,0.23709679]
[1762797469043,0.0285598,105840.0,105830.0,0.23709679]
[1762797469237,0.0285598,105840.0,105830.0,0.15289517]
[1762797470244,0.0285598,105840.0,105830.0,0.24670479]
[1762797470936,0.12234019,105840.0,105830.0,0.24667556]
[1762797471245,0.0285598,105840.0,105830.0,0.24667556]
[1762797471446,0.12234019,105840.0,105830.0,0.24667556]
[1762797471750,0.12234019,105840.0,105830.0,0.33087718]
[1762797472737,0.1516242,105890.0,105880.0,0.04371]
[1762797472940,0.26976857,105890.0,105880.0,0.04444267]
[1762797473147,0.34138301,105890.0,105880.0,0.04444267]
[1762797473937,0.34138301,105890.0,105880.0,0.13892057]
[1762797474244,0.24760262,105890.0,105880.0,0.15189057]
[1762797474545,0.24760262,105890.0,105880.0,0.05741267]
[1762797474546,0.25560262,105890.0,105880.0,0.05741267]
[1762797475142,0.24860262,105890.0,105880.0,0.05741267]
[1762797475645,0.24760262,105890.0,105880.0,0.05741267]
[1762797476245,0.24760262,105890.0,105880.0,0.06860805]
[1762797477842,0.24760262,105890.0,105880.0,0.16308595]
[1762797478045,0.24760262,105890.0,105880.0,0.15011595]
[1762797478240,0.24860262,105890.0,105880.0,0.15011595]
[1762797478445,0.24960262,105890.0,105880.0,0.15011595]
[1762797478948,0.24860262,105890.0,105880.0,0.15011595]
[1762797479150,0.24760262,105890.0,105880.0,0.15011595]
[1762797479550,0.24860262,105890.0,105880.0,0.15011595]
[1762797480550,0.24960262,105890.0,105880.0,0.15011595]
[1762797481840,0.34338301,105890.0,105880.0,0.14962595]
[1762797482044,0.34338301,105890.0,105880.0,0.05514805]
[1762797484149,0.34338301,105890.0,105880.0,0.14962595]
[1762797484346,0.34338301,105890.0,105880.0,0.05514805]
[1762797485255,0.34338301,105890.0,105880.0,0.01192805]
[1762797485551,0.34338301,105890.0,105880.0,0.05533805]
[1762797485750,0.34338301,105890.0,105880.0,0.03400805]
[1762797486458,0.34338301,105890.0,105880.0,0.05533805]
[1762797486842,0.34338301,105890.0,105880.0,0.01192805]
[1762797487047,0.34338301,105890.0,105880.0,0.05533805]
[1762797487655,0.34338301,105890.0,105880.0,0.03400805]
[1762797488052,0.34338301,105890.0,105880.0,0.05533805]
[1762797488652,0.34338301,105890.0,105880.0,0.01119538]
[1762797488858,0.24960262,105890.0,105880.0,0.04414267]
[1762797489059,0.24960262,105890.0,105880.0,0.15032647]
[1762797489355,0.24960262,105890.0,105880.0,0.16329647]
[1762797489565,0.23647262,105890.0,105880.0,0.16329647]
[1762797492566,0.24938262,105890.0,105880.0,0.06881857]
[1762797492760,0.24938262,105890.0,105880.0,0.25707686]
[1762797492761,0.04821803,105890.0,105880.0,0.25707686]
[1762797492966,0.14159842,105890.0,105880.0,0.25707686]
[1762797493154,0.14059842,105890.0,105880.0,0.25707686]
[1762797493660,0.001,105890.0,105880.0,0.35085725]
[1762797493955,0.04355177,105900.0,105890.0,0.150849]
[1762797494156,0.00014177,105900.0,105890.0,0.24536206]
[1762797494370,0.02238177,105900.0,105890.0,0.24536206]
[1762797494872,0.0245798,105900.0,105890.0,0.24536206]
[1762797495273,0.1190399,105900.0,105890.0,0.24536206]
[1762797495470,0.1190399,105900.0,105890.0,0.15189306]
[1762797495678,0.23399029,105900.0,105890.0,0.15189306]
[1762797496064,0.23499029,105900.0,105890.0,0.15189306]
[1762797496574,0.23499029,105900.0,105890.0,0.24636206]
[1762797496769,0.23399029,105900.0,105890.0,0.24636206]
[1762797497070,0.0245798,105900.0,105890.0,0.24536206]
[1762797497574,0.13953019,105900.0,105890.0,0.24536206]
[1762797497773,0.0457498,105900.0,105890.0,0.24536206]
[1762797498076,0.1402099,105900.0,105890.0,0.24536206]
[1762797498675,0.0457498,105900.0,105890.0,0.24536206]
[1762797498975,0.0245798,105900.0,105890.0,0.24536206]
[1762797499563,0.00014177,105900.0,105890.0,0.24536206]
[1762797500275,0.00014177,105900.0,105890.0,0.39096206]
[1762797500780,0.00014177,105900.0,105890.0,0.45826196]
[1762797503273,0.00014177,105900.0,105890.0,0.39096206]
[1762797503473,0.00014177,105900.0,105890.0,0.45826196]
[1762797503674,0.09460187,105900.0,105890.0,0.45826196]
[1762797503872,0.02162177,105900.0,105890.0,0.45826196]
[1762797504273,0.02162177,105900.0,105890.0,0.39096206]
[1762797504471,0.11608187,105900.0,105890.0,0.39096206]
[1762797504675,0.04367177,105900.0,105890.0,0.39096206]
[1762797504974,0.02162177,105900.0,105890.0,0.39096206]
[1762797505178,0.04367177,105900.0,105890.0,0.39096206]
[1762797508079,0.02162177,105900.0,105890.0,0.39096206]
[1762797508480,0.00014177,105900.0,105890.0,0.39096206]
[1762797509873,0.02162177,105900.0,105890.0,0.29718167]
[1762797510082,0.02162177,105900.0,105890.0,0.39096206]
[1762797510486,0.1403299,105900.0,105890.0,0.39096206]
[1762797512182,0.0458698,105900.0,105890.0,0.39096206]
[1762797512385,0.1403299,105900.0,105890.0,0.39096206]
[1762797512686,0.0458698,105900.0,105890.0,0.39096206]
[1762797513190,0.0238198,105900.0,105890.0,0.39096206]
[1762797514283,0.00014177,105900.0,105890.0,0.55204235]
[1762797514584,0.00014177,105900.0,105890.0,0.48474245]
[1762797514979,0.00014177,105900.0,105890.0,0.56894407]
[1762797515183,1.77e-06,105900.0,105890.0,0.48474245]
[1762797515385,1.77e-06,105900.0,105890.0,0.56894407]
[1762797515886,1.77e-06,105900.0,105890.0,0.80502407]
[1762797516693,1.77e-06,105900.0,105890.0,0.56894407]
[1762797516897,1.77e-06,105900.0,105890.0,0.80502407]
[1762797517192,1.77e-06,105900.0,105890.0,0.56894407]
[1762797517392,1.77e-06,105900.0,105890.0,0.80502407]
[1762797518094,1.77e-06,105900.0,105890.0,0.80602407]
[1762797518688,1.77e-06,105900.0,105890.0,0.80702407]
[1762797522286,1.77e-06,105900.0,105890.0,0.57094407]
[1762797522487,1.77e-06,105900.0,105890.0,0.80702407]
[1762797522681,1.77e-06,105900.0,105890.0,0.57094407]
[1762797522889,1.77e-06,105900.0,105890.0,0.80702407]
[1762797523692,1.77e-06,105900.0,105890.0,0.57094407]
[1762797523993,1.77e-06,105900.0,105890.0,0.80702407]
[1762797524191,1.77e-06,105900.0,105890.0,0.57094407]
[1762797524491,1.77e-06,105900.0,105890.0,0.80702407]
[1762797524883,1.77e-06,105900.0,105890.0,0.72282245]
[1762797525080,1.77e-06,105900.0,105890.0,0.48674245]
[1762797525485,1.77e-06,105900.0,105890.0,0.72282245]
[1762797526595,1.77e-06,105900.0,105890.0,0.84079167]
[1762797528592,1.77e-06,105900.0,105890.0,0.60471167]
[1762797528982,1.77e-06,105900.0,105890.0,0.84079167]
[1762797529689,1.77e-06,105900.0,105890.0,0.60471167]
[1762797529886,1.77e-06,105900.0,105890.0,0.84079167]
[1762797530088,1.77e-06,105900.0,105890.0,0.60471167]
[1762797530692,1.77e-06,105900.0,105890.0,0.48674245]
[1762797532994,1.77e-06,105900.0,105890.0,0.39283009]
[1762797533896,1.77e-06,105900.0,105890.0,0.51079931]
[1762797534498,1.77e-06,105900.0,105890.0,0.74687931]
[1762797534690,1.77e-06,105900.0,105890.0,0.51079931]
[1762797535098,1.77e-06,105900.0,105890.0,0.41715089]
[1762797535394,0.0450698,105900.0,105890.0,0.37374089]
[1762797535696,1.77e-06,105900.0,105890.0,0.46738931]
[1762797539204,1.77e-06,105900.0,105890.0,0.52827903]
[1762797539801,1.77e-06,105900.0,105890.0,0.57924012]
[1762797540003,1.77e-06,105900.0,105890.0,0.58000727]
[1762797540407,1.77e-06,105900.0,105890.0,0.52827903]
[1762797541608,1.77e-06,105900.0,105890.0,0.58000727]
[1762797542206,1.77e-06,105900.0,105890.0,0.52827903]
[1762797542607,1.77e-06,105900.0,105890.0,0.5796977]
[1762797543215,1.77e-06,105900.0,105890.0,0.52827903]
[1762797543921,1.77e-06,105900.0,105890.0,0.57887291]
[1762797544919,1.77e-06,105900.0,105890.0,0.52827903]
[1762797545505,1.77e-06,105900.0,105890.0,0.57959897]
[1762797545908,1.77e-06,105900.0,105890.0,0.66027739]
[1762797546120,0.04287,105940.0,105930.0,0.05717]
[1762797546319,0.13949243,105940.0,105930.0,0.18608964]
[1762797546922,0.04506803,105940.0,105930.0,0.18608964]
[1762797547421,0.04806803,105940.0,105930.0,0.27973806]
[1762797547621,0.04806803,105940.0,105930.0,0.37417136]
[1762797547812,0.05106803,105940.0,105930.0,0.37417136]
[1762797548414,0.04806803,105940.0,105930.0,0.37417136]
[1762797548717,0.04706803,105940.0,105930.0,0.37417136]
[1762797551623,0.04706803,105940.0,105930.0,0.30687411]
[1762797552615,0.04706803,105940.0,105930.0,0.47582503]
[1762797552616,0.002,105940.0,105930.0,0.47582503]
[1762797552820,0.002,105940.0,105930.0,0.38217661]
[1762797553122,0.002,105940.0,105930.0,0.44927029]
[1762797553319,0.002,105940.0,105930.0,0.59518285]
[1762797553515,0.002,105940.0,105930.0,0.83035341]
[1762797553720,0.00037772,105950.0,105940.0,0.1515962]
[1762797553922,0.00037772,105950.0,105940.0,0.30686701]
[1762797554816,0.00137772,105950.0,105940.0,0.30686701]
[1762797555225,0.07087,105970.0,105960.0,0.05717]
[1762797555421,0.07306803,105970.0,105960.0,0.21244081]
[1762797556624,0.17046753,105970.0,105960.0,0.21244081]
[1762797557125,0.17346753,105970.0,105960.0,0.11879239]
[1762797557324,0.17346753,105970.0,105960.0,0.21244081]
[1762797557520,0.07906803,105970.0,105960.0,0.30684911]
[1762797557922,0.07906803,105970.0,105960.0,0.27941397]
[1762797558122,0.07906803,105970.0,105960.0,0.30684911]
[1762797558318,0.03619803,105970.0,105960.0,0.30684911]
[1762797558524,0.034,105970.0,105960.0,0.40049753]
[1762797558926,0.034,105970.0,105960.0,0.30684911]
[1762797560421,0.03619803,105970.0,105960.0,0.30684911]
[1762797560620,0.03619803,105970.0,105960.0,0.21320069]
[1762797560621,0.07989803,105970.0,105960.0,0.21320069]
[1762797560822,0.07989803,105970.0,105960.0,0.21244081]
[1762797561324,0.03619803,105970.0,105960.0,0.30684911]
[1762797561728,0.08110803,105970.0,105960.0,0.30684911]
[1762797562228,0.034,105970.0,105960.0,0.40049753]
[1762797563021,0.00023584,106000.0,105960.0,0.30952809]
[1762797563226,0.04734387,106000.0,105990.0,0.23628684]
[1762797563422,0.04734387,106000.0,105990.0,0.04972267]
[1762797563626,0.04734387,106000.0,105990.0,0.20426081]
[1762797564228,0.05795,106030.0,106020.0,0.04595]
[1762797564425,0.152996,106030.0,106020.0,0.04814803]
[1762797564621,0.152996,106030.0,106020.0,0.10903775]
[1762797564817,0.24664442,106030.0,106020.0,0.11979071]
[1762797565418,0.152996,106030.0,106020.0,0.11979071]
[1762797565625,0.24664442,106030.0,106020.0,0.11979071]
[1762797566935,0.24864442,106030.0,106020.0,0.07384071]
[1762797567326,0.154996,106030.0,106020.0,0.07384071]
[1762797567520,0.24864442,106030.0,106020.0,0.09674071]
[1762797568240,0.154996,106030.0,106020.0,0.09674071]
[1762797568528,0.24864442,106030.0,106020.0,0.09674071]
[1762797569234,0.24864442,106030.0,106020.0,0.11979071]
[1762797570636,0.154996,106030.0,106020.0,0.11979071]
[1762797570839,0.24864442,106030.0,106020.0,0.11979071]
[1762797571934,0.24864442,106030.0,106020.0,0.07384071]
[1762797572136,0.94229284,106030.0,106020.0,0.07164268]
[1762797572435,0.1530048,106020.0,106010.0,0.00014177]
[1762797572642,0.24665322,106020.0,106010.0,0.00014177]
[1762797573337,0.24665322,106020.0,106010.0,0.0110329]
[1762797573525,0.25165322,106020.0,106010.0,0.0110329]
[1762797573725,0.25165322,106020.0,106010.0,0.01323093]
[1762797575735,0.25165322,106020.0,106010.0,0.05918093]
[1762797575942,0.25165322,106020.0,106010.0,0.01323093]
[1762797577340,0.34530164,106020.0,106010.0,0.0110329]
[1762797579140,0.34530164,106020.0,105990.0,0.0943776]
[1762797579347,0.1530225,106000.0,105990.0,0.1484876]
[1762797579546,0.1530225,106000.0,105990.0,0.15068563]
[1762797580039,0.1530225,106000.0,105990.0,0.16172117]
[1762797580844,0.24667092,106000.0,105990.0,0.16172117]
[1762797581640,0.24667092,106000.0,105990.0,0.06734357]
[1762797581944,0.24667092,106000.0,105990.0,0.05918357]
[1762797582137,0.25167092,106000.0,105990.0,0.05918357]
[1762797582338,0.1580225,106000.0,105990.0,0.05918357]
[1762797582535,0.005,106000.0,105990.0,0.25537349]
[1762797583739,0.1220126,106000.0,105990.0,0.25537349]
[1762797584337,0.02764,106000.0,105990.0,0.25537349]
[1762797585752,0.1442825,106000.0,105990.0,0.25537349]
[1762797589442,0.1442825,106000.0,105990.0,0.06734357]
[1762797589649,0.25185092,106000.0,105990.0,0.05918357]
[1762797590343,0.1582025,106000.0,105990.0,0.05918357]
[1762797590549,0.25185092,106000.0,105990.0,0.05918357]
[1762797592849,0.1582025,106000.0,105990.0,0.05918357]
[1762797593653,0.25185092,106000.0,105990.0,0.05918357]
[1762797594356,0.25185092,106000.0,105990.0,0.15356497]
[1762797594549,0.25185092,106000.0,105990.0,0.05918357]
[1762797595056,0.34526752,106000.0,105990.0,0.05918357]
[1762797596559,0.34526752,106000.0,105990.0,0.15356497]
[1762797596955,0.25173501,106000.0,105990.0,0.15356497]
[1762797597754,0.34526752,106000.0,105990.0,0.15356497]
[1762797599555,0.25173501,106000.0,105990.0,0.15356497]
[1762797600358,0.1582025,106000.0,105990.0,0.15356497]
[1762797600560,0.25173501,106000.0,105990.0,0.24709748]
[1762797600859,0.04991,106000.0,105990.0,0.25526748]
[1762797601266,0.04991,106000.0,105990.0,0.32224064]
[1762797601766,0.1442825,106000.0,105990.0,0.32224064]
[1762797602156,0.04991,106000.0,105990.0,0.32224064]
[1762797602864,0.01592646,106000.0,105990.0,0.32224064]
[1762797603059,0.13850607,106010.0,106000.0,0.1521425]
[1762797603260,0.23203858,106010.0,106000.0,0.22052563]
[1762797603570,0.04414177,106010.0,106000.0,0.24787304]
[1762797603865,0.04414177,106010.0,106000.0,0.34140555]
[1762797603866,0.00014177,106010.0,106000.0,0.34140555]
[1762797604062,1e-08,106010.0,106000.0,0.40843064]
[1762797604369,1e-08,106010.0,106000.0,0.64427064]
[1762797604562,1e-08,106010.0,106000.0,0.34140555]
[1762797604760,1e-08,106010.0,106000.0,0.42553875]
[1762797605159,0.09436361,106010.0,106000.0,0.42553875]
[1762797605457,0.00100001,106010.0,106000.0,0.42553875]
[1762797606366,0.13936361,106010.0,106000.0,0.12690781]
[1762797606661,0.13936361,106010.0,106000.0,0.22044032]
[1762797606864,0.02383001,106010.0,106000.0,0.40834533]